bitfinex-derivatives/quotes_SOLF0:USTF0_20250613
["timestamp","ask_amount","ask_price","bid_price","bid_amount"]
[1749858241555,0.04694158,148.65,148.64,6.7245]
[1749858246455,0.04694158,148.65,148.64,9.25106074]
[1749858247161,0.04694158,148.65,148.64,6.7245]
[1749858247557,0.04694158,148.65,148.64,9.25106074]
[1749858249260,0.04694158,148.65,148.64,42.39106074]
[1749858249960,7.06938474,148.72,148.64,35.66656074]
[1749858250159,5.46803951,148.71,148.68,2.52656074]
[1749858250362,7.06938474,148.72,148.68,2.52656074]
[1749858250660,5.46716122,148.71,148.7,6.7215]
[1749858253359,7.11641565,148.72,148.7,6.7215]
[1749858253563,4.58985491,148.72,148.7,6.7215]
[1749858253763,7.11641565,148.72,148.71,6.7213]
[1749858253955,10.06294473,148.72,148.71,6.7213]
[1749858254157,12.58950547,148.72,148.71,6.7213]
[1749858255757,7.11641565,148.72,148.7,6.7216]
[1749858255953,7.11641565,148.72,148.69,0.04395261]
[1749858256663,7.11641565,148.72,148.7,6.7218]
[1749858258368,4.58985491,148.72,148.69,0.04395261]
[1749858258575,4.58985491,148.72,148.7,2.52656074]
[1749858259166,4.58985491,148.72,148.69,0.04395261]
[1749858259368,4.58985491,148.72,148.7,2.52656074]
[1749858260068,4.58985491,148.72,148.71,6.7213]
[1749858260268,4.58985491,148.72,148.69,2.57051335]
[1749858260968,4.58985491,148.72,148.7,6.7215]
[1749858261562,4.58985491,148.72,148.71,6.7213]
[1749858261766,4.58985491,148.72,148.69,2.57051335]
[1749858262169,4.58985491,148.72,148.71,6.7213]
[1749858262365,4.58985491,148.72,148.69,2.57051335]
[1749858262568,2.52656074,148.71,148.69,0.04395261]
[1749858262770,2.52656074,148.7,148.69,0.04395261]
[1749858263157,11.31085491,148.72,148.69,0.04395261]
[1749858263362,2.52656074,148.71,148.69,0.04395261]
[1749858263855,2.52656074,148.7,148.69,0.04395261]
[1749858266069,2.52656074,148.7,148.69,6.76615261]
[1749858266364,7.99744951,148.7,148.69,0.04395261]
[1749858271576,5.47088877,148.7,148.69,0.04395261]
[1749858271872,2.52656074,148.71,148.69,0.04395261]
[1749858272071,2.52656074,148.71,148.69,6.76595261]
[1749858273776,2.52656074,148.71,148.7,6.7218]
[1749858273984,7.11641565,148.72,148.7,6.7218]
[1749858274475,7.11641565,148.72,148.71,6.7213]
[1749858274668,12.57341073,148.72,148.71,6.7213]
[1749858274974,4.58985491,148.72,148.71,6.7213]
[1749858276467,7.11641565,148.72,148.71,6.7213]
[1749858277168,12.5738788,148.72,148.71,6.7213]
[1749858277362,10.04782373,148.72,148.71,6.7213]
[1749858278372,4.58985491,148.72,148.71,6.7213]
[1749858278774,10.04833922,148.72,148.71,6.7213]
[1749858298894,10.07188169,148.72,148.71,6.7213]
[1749858299081,6.28881196,148.76,148.75,6.7195]
[1749858299280,10.55592819,148.76,148.75,6.7195]
[1749858299489,10.55592826,148.76,148.75,6.7195]
[1749858299688,10.55592819,148.76,148.75,6.7195]
[1749858299884,10.55589471,148.76,148.75,6.7195]
[1749858300395,10.55586478,148.76,148.74,6.76348016]
[1749858300593,5.48141389,148.75,148.74,6.76348016]
[1749858302089,8.00569254,148.75,148.74,0.04368016]
[1749858302394,10.55592489,148.75,148.74,0.04368016]
[1749858302588,17.2753882,148.75,148.74,0.04368016]
[1749858303192,17.27540654,148.75,148.74,0.04368016]
[1749858303392,5.48141389,148.75,148.74,0.04368016]
[1749858303897,8.00569254,148.75,148.74,0.04368016]
[1749858304290,5.48141389,148.75,148.74,0.04368016]
[1749858304494,2.54790721,148.77,148.74,0.04368016]
[1749858304685,5.47068081,148.76,148.74,0.04368016]
[1749858304885,5.47068081,148.75,148.74,6.76338016]
[1749858305098,7.99495946,148.75,148.74,0.04368016]
[1749858305286,5.47068081,148.75,148.74,0.04368016]
[1749858306500,7.99495946,148.75,148.74,0.04368016]
[1749858307094,12.19018081,148.75,148.74,0.04368016]
[1749858307293,14.71445946,148.75,148.74,0.04368016]
[1749858307489,14.71445946,148.75,148.63,387.2]
[1749858307490,7.99495946,148.75,148.63,387.2]
[1749858307696,5.47068081,148.74,148.7,2.52427865]
[1749858307896,2.52427865,148.76,148.72,2.52427865]
[1749858308196,5.4676212,148.75,148.72,2.52427865]
[1749858308503,0.05014904,148.75,148.74,2.52427865]
[1749858308694,6.28881196,148.8,148.74,2.52427865]
[1749858308998,6.28881196,148.83,148.78,2.52427865]
[1749858309200,33.6,148.84,148.78,2.52427865]
[1749858309201,5.46495339,148.82,148.78,2.52427865]
[1749858309394,5.46495339,148.81,148.75,33.6]
[1749858309596,6.28881196,148.85,148.77,0.0438634]
[1749858309791,41.98642787,148.87,148.75,33.6]
[1749858309792,10.52657534,148.84,148.8,0.04262042]
[1749858309998,5.46009876,148.83,148.8,0.04262042]
[1749858310196,6.28881196,148.86,148.8,0.04262042]
[1749858310392,10.52137854,148.85,148.81,2.52427865]
[1749858310590,39.88881196,148.87,148.82,6.716]
[1749858310591,7.97924296,148.84,148.82,6.716]
[1749858310799,7.97924296,148.83,148.82,6.7657638]
[1749858310999,7.97924296,148.83,148.82,0.0497638]
[1749858311201,3.93883761,148.84,148.82,0.0497638]
[1749858311799,3.93883761,148.86,148.83,6.7159]
[1749858312003,5.43342674,148.85,148.83,6.7159]
[1749858312197,33.6,148.87,148.83,6.7159]
[1749858312503,9.36763742,148.86,148.83,6.7159]
[1749858312803,3.93883761,148.86,148.82,6.7660638]
[1749858313004,33.6,148.87,148.82,0.0497638]
[1749858313204,44.42841196,148.9,148.82,0.0497638]
[1749858313396,3.93883761,148.87,148.85,0.04954697]
[1749858313999,6.7141,148.88,148.85,0.04954697]
[1749858314304,3.93883761,148.88,148.85,0.04954697]
[1749858316001,3.93883761,148.86,148.85,0.04954697]
[1749858316703,6.7138,148.88,148.85,0.04954697]
[1749858317002,3.93883761,148.86,148.85,0.04954697]
[1749858319294,13.07531101,148.86,148.85,0.04954697]
[1749858319499,6.36079516,148.86,148.85,0.04954697]
[1749858319699,3.93883761,148.86,148.85,0.04954697]
[1749858320400,6.28881196,148.92,148.85,0.04954697]
[1749858320600,6.3598806,148.91,148.87,0.04997143]
[1749858320810,3.93883761,148.91,148.88,0.04505209]
[1749858321303,2.2069,148.93,148.88,0.04505209]
[1749858321304,10.65163761,148.9,148.88,0.04505209]
[1749858322505,6.7132,148.89,148.88,0.04505209]
[1749858322900,3.93883761,148.91,148.88,0.04505209]
[1749858323101,6.7131,148.9,148.88,0.04505209]
[1749858323306,3.93883761,148.91,148.88,0.04505209]
[1749858323805,6.7128,148.9,148.88,0.04505209]
[1749858325305,3.93883761,148.91,148.88,0.04505209]
[1749858325505,6.7132,148.89,148.88,0.04505209]
[1749858325805,3.93883761,148.91,148.88,0.04505209]
[1749858326208,6.7132,148.89,148.88,0.04505209]
[1749858326407,3.93883761,148.91,148.88,0.04505209]
[1749858326607,6.7129,148.9,148.88,0.04505209]
[1749858329100,3.93883761,148.91,148.88,0.04505209]
[1749858329712,6.713,148.9,148.88,0.04505209]
[1749858330217,6.7132,148.89,148.88,0.04505209]
[1749858330511,3.93883761,148.91,148.88,0.04505209]
[1749858330721,6.7119,148.92,148.88,0.04505209]
[1749858331315,6.14573761,148.93,148.88,0.04505209]
[1749858331615,2.2069,148.93,148.88,34.96505209]
[1749858332010,6.14573761,148.93,148.88,34.96505209]
[1749858332205,6.14573761,148.93,148.9,6.7125]
[1749858332614,6.14573761,148.93,148.88,34.96505209]
[1749858332816,12.85723761,148.93,148.88,34.96505209]
[1749858333804,12.85723761,148.93,148.9,6.7127]
[1749858334011,6.14573761,148.93,148.88,34.96505209]
[1749858334313,6.14573761,148.93,148.88,41.67835209]
[1749858334709,6.712,148.92,148.88,41.67835209]
[1749858335516,6.712,148.92,148.89,6.7131]
[1749858335716,6.14573761,148.93,148.88,34.96505209]
[1749858336714,12.85743761,148.93,148.89,6.713]
[1749858336906,12.85743761,148.93,148.88,34.96505209]
[1749858337511,6.14573761,148.93,148.88,34.96505209]
[1749858337709,3.93883761,148.93,148.88,34.96505209]
[1749858338512,3.93883761,148.93,148.9,6.7123]
[1749858339312,3.93883761,148.93,148.91,6.7123]
[1749858339612,3.93883761,148.93,148.91,6.75629883]
[1749858340208,3.93883761,148.93,148.91,0.04399883]
[1749858340618,10.65023761,148.93,148.91,0.04399883]
[1749858341614,3.93883761,148.93,148.91,0.04399883]
[1749858342319,6.7119,148.92,148.91,0.04399883]
[1749858343322,6.7115,148.93,148.91,0.04399883]
[1749858345014,39.4522,148.97,148.91,0.04399883]
[1749858345211,3.93883761,148.94,148.91,0.04399883]
[1749858345612,10.65013761,148.94,148.91,0.04399883]
[1749858347723,10.65013761,148.94,148.91,6.75619883]
[1749858348127,3.93883761,148.94,148.91,0.04399883]
[1749858348929,10.64983761,148.94,148.91,0.04399883]
[1749858349424,10.64983761,148.94,148.91,6.75589883]
[1749858349625,9.29078945,148.94,148.91,6.75589883]
[1749858351229,5.47295977,148.93,148.91,6.75589883]
[1749858351924,9.29078945,148.94,148.91,6.75589883]
[1749858352123,5.47772694,148.93,148.91,6.75589883]
[1749858352428,9.29078945,148.94,148.91,6.75589883]
[1749858352626,4.52826038,148.93,148.91,6.75589883]
[1749858352828,9.29078945,148.94,148.91,6.75589883]
[1749858353030,10.008267,148.93,148.91,6.75589883]
[1749858353221,9.29078945,148.94,148.91,6.75589883]
[1749858353420,10.65063761,148.92,148.86,34.5]
[1749858353631,12.44920098,148.93,148.86,34.5]
[1749858353632,3.93883761,148.9,148.86,34.5]
[1749858353927,3.93883761,148.9,148.88,6.7134]
[1749858354424,0.04889606,148.9,148.88,6.75953087]
[1749858354631,0.04889606,148.9,148.89,6.7132]
[1749858355732,0.04889606,148.9,148.88,0.04613087]
[1749858355733,5.48717316,148.94,148.91,6.712]
[1749858355918,10.01570485,148.93,148.91,41.212]
[1749858356233,10.14684008,148.96,148.91,41.212]
[1749858356433,6.711,148.94,148.91,41.212]
[1749858356731,10.01690788,148.93,148.91,41.25930896]
[1749858356926,10.01690788,148.92,148.91,41.25930896]
[1749858357635,10.01690788,148.92,148.91,34.54730896]
[1749858357931,9.42723861,148.92,148.91,34.54730896]
[1749858358425,13.95607344,148.92,148.91,34.54730896]
[1749858358636,9.42723861,148.92,148.91,34.54730896]
[1749858358830,20.66797344,148.92,148.91,34.54730896]
[1749858359523,16.13913861,148.92,148.91,34.54730896]
[1749858359719,20.66797343,148.92,148.91,34.54730896]
[1749858360426,20.66796144,148.92,148.91,34.54730896]
[1749858361025,20.66796144,148.92,148.87,34.5]
[1749858361026,16.39043676,148.92,148.87,34.5]
[1749858361221,3.93883761,148.89,148.82,2.3203]
[1749858361427,3.93883761,148.87,148.83,34.5]
[1749858361725,3.93883761,148.87,148.81,389.0613]
[1749858362028,3.99036111,148.85,148.83,0.05007033]
[1749858362227,3.98558407,148.85,148.83,0.04501466]
[1749858363035,5.49449157,148.84,148.83,0.04501466]
[1749858363425,3.93883761,148.82,148.78,34.5]
[1749858363627,6.7171,148.81,148.78,34.5]
[1749858363829,3.93883761,148.82,148.78,34.5]
[1749858364331,0.04946092,148.81,148.79,0.04914363]
[1749858364521,5.5861532,148.81,148.79,0.04914363]
[1749858364722,3.93883761,148.8,148.79,0.04914363]
[1749858364929,8.47396091,148.8,148.75,34.52]
[1749858365240,3.93883761,148.78,148.75,34.52]
[1749858365734,6.7181,148.79,148.75,34.52]
[1749858365927,0.04550769,148.78,148.76,0.04289931]
[1749858366132,0.04550769,148.78,148.77,6.7186]
[1749858367830,0.04550769,148.78,148.76,0.04289931]
[1749858368226,6.7186,148.77,148.73,34.52]
[1749858368428,3.93883761,148.77,148.73,34.52]
[1749858368827,3.93883761,148.77,148.7,34.52]
[1749858369229,0.05147421,148.75,148.72,0.05119227]
[1749858369630,0.05147421,148.75,148.74,6.72]
[1749858369934,0.05147421,148.75,148.72,0.05119227]
[1749858370134,0.05147421,148.75,148.73,6.7201]
[1749858370541,0.05147421,148.75,148.72,0.05119227]
[1749858371732,0.05147421,148.75,148.72,6.77199227]
[1749858372338,0.05147421,148.75,148.73,6.7204]
[1749858372534,0.05147421,148.75,148.72,0.05119227]
[1749858373639,0.05147421,148.75,148.73,6.7203]
[1749858374342,0.05147421,148.75,148.74,6.72]
[1749858377539,7.421e-05,148.75,148.74,6.72]
[1749858378240,7.421e-05,148.75,148.74,8.909]
[1749858379237,7.421e-05,148.75,148.74,15.629]
[1749858379444,7.421e-05,148.75,148.74,12.84783761]
[1749858379644,7.421e-05,148.75,148.74,8.909]
[1749858380940,7.421e-05,148.75,148.74,12.84783761]
[1749858383745,7.421e-05,148.75,148.74,8.909]
[1749858383941,7.421e-05,148.75,148.74,12.84783761]
[1749858385349,7.421e-05,148.75,148.74,8.909]
[1749858385554,7.421e-05,148.75,148.74,12.84783761]
[1749858387849,7.421e-05,148.75,148.74,6.72]
[1749858389044,7.421e-05,148.75,148.72,34.89119227]
[1749858389252,7.421e-05,148.75,148.72,38.83002988]
[1749858389749,7.421e-05,148.75,148.74,6.72]
[1749858389953,7.421e-05,148.75,148.72,34.89119227]
[1749858390143,3.93891182,148.75,148.72,0.05119227]
[1749858390739,3.93883761,148.73,148.72,0.05119227]
[1749858391247,10.65923761,148.73,148.72,0.05119227]
[1749858391442,3.93883761,148.73,148.69,34.84]
[1749858391648,6.721,148.72,148.69,34.84]
[1749858391847,3.93883761,148.73,148.68,6.7222]
[1749858392553,6.7215,148.71,148.69,0.04473256]
[1749858392947,0.04461756,148.72,148.69,6.76693256]
[1749858393950,3.93883761,148.71,148.69,0.04473256]
[1749858395550,3.93883761,148.71,148.69,6.76693256]
[1749858396158,3.93883761,148.71,148.63,34.86]
[1749858396353,3.93883761,148.71,148.63,38.79883761]
[1749858396560,3.93883761,148.71,148.68,6.7226]
[1749858397361,3.99009813,148.71,148.69,6.7222]
[1749858397554,0.05126052,148.71,148.68,0.04412118]
[1749858398852,0.05126052,148.71,148.7,6.7218]
[1749858402353,40.99973761,148.76,148.74,6.7198]
[1749858403255,5.4724164,148.75,148.74,0.04929868]
[1749858403762,5.4724164,148.75,148.74,6.76929868]
[1749858404963,5.47998499,148.75,148.74,0.04929868]
[1749858405352,5.47998499,148.75,148.74,6.76899868]
[1749858405353,5.47995261,148.75,148.74,6.76899868]
[1749858408264,0.04888831,148.76,148.75,6.7195]
[1749858415270,0.04888831,148.76,148.75,41.1995]
[1749858415578,5.49892613,148.79,148.78,6.7182]
[1749858415774,38.79883761,148.82,148.75,34.48]
[1749858415968,5.4980542,148.81,148.75,34.48]
[1749858416371,5.4980542,148.81,148.78,6.7178]
[1749858416571,3.93883761,148.82,148.75,34.48]
[1749858416776,0.04672329,148.8,148.77,0.05059669]
[1749858416963,0.04672329,148.8,148.79,6.7177]
[1749858417577,34.48,148.85,148.82,6.7164]
[1749858417877,5.49420044,148.84,148.82,6.7164]
[1749858418173,10.65383761,148.86,148.81,6.7166]
[1749858418371,5.49432612,148.85,148.81,6.7166]
[1749858418574,5.49432612,148.84,148.81,6.7166]
[1749858418763,0.04515931,148.84,148.82,6.76082372]
[1749858419172,0.04515931,148.84,148.82,0.04472372]
[1749858419371,5.54651569,148.84,148.82,0.04472372]
[1749858419673,0.04515931,148.84,148.82,0.04472372]
[1749858420476,0.04515931,148.84,148.82,6.76102372]
[1749858421382,0.04515931,148.84,148.83,6.7159]
[1749858422066,8.48420247,148.9,148.86,6.7142]
[1749858422067,2.2762,148.9,148.86,6.7142]
[1749858422276,10.08733764,148.89,148.86,6.7142]
[1749858422580,10.08733764,148.89,148.83,38.39883761]
[1749858422581,3.93883761,148.89,148.83,34.46]
[1749858422966,0.04912241,148.87,148.85,0.05032146]
[1749858423578,3.98796002,148.87,148.85,0.05032146]
[1749858423777,6.7146,148.86,148.85,0.05032146]
[1749858426085,6.7155,148.85,148.83,34.46]
[1749858426385,3.93883761,148.84,148.79,34.46]
[1749858426569,3.93883761,148.84,148.79,41.1774]
[1749858426774,6.716,148.83,148.79,41.1774]
[1749858427177,0.04734703,148.82,148.8,0.04900846]
[1749858427371,3.98618464,148.82,148.8,0.04900846]
[1749858427772,6.7168,148.81,148.8,0.04900846]
[1749858427973,3.93883761,148.81,148.8,0.04900846]
[1749858428385,10.65563761,148.81,148.8,0.04900846]
[1749858429886,6.7179,148.79,148.76,34.46]
[1749858430186,3.93883761,148.79,148.73,34.46]
[1749858430377,6.7182,148.78,148.73,34.46]
[1749858430584,3.93883761,148.79,148.75,6.7195]
[1749858430775,3.93883761,148.77,148.76,0.04618794]
[1749858431680,10.65783761,148.77,148.76,0.04618794]
[1749858431880,3.93883761,148.74,148.71,34.46]
[1749858432188,3.93883761,148.74,148.72,6.7206]
[1749858432788,3.99049044,148.74,148.72,0.0426486]
[1749858435290,0.05165283,148.74,148.72,0.0426486]
[1749858436685,0.05165283,148.74,148.73,6.7204]
[1749858436887,0.05165283,148.74,148.72,0.0426486]
[1749858437683,3.93883761,148.73,148.72,0.0426486]
[1749858438080,0.05165283,148.74,148.72,6.7632486]
[1749858438780,3.93883761,148.73,148.72,0.0426486]
[1749858441688,10.65923761,148.73,148.72,0.0426486]
[1749858442500,3.99049044,148.74,148.72,0.0426486]
[1749858442996,3.99049044,148.74,148.72,6.7634486]
[1749858443191,3.99049044,148.74,148.72,0.0426486]
[1749858445002,3.99049044,148.74,148.65,34.48]
[1749858445194,3.93883761,148.69,148.65,34.48]
[1749858445690,3.93883761,148.71,148.65,34.48]
[1749858446197,0.04342606,148.69,148.68,6.7227]
[1749858462204,3.93883761,148.74,148.71,6.7211]
[1749858462592,3.93883761,148.74,148.65,38.41883761]
[1749858462593,3.93883761,148.72,148.65,38.41883761]
[1749858463302,3.93883761,148.72,148.67,0.04476681]
[1749858463303,0.04654252,148.7,148.67,0.04476681]
[1749858463607,0.04654252,148.7,148.68,6.7227]
[1749858463799,0.04654252,148.7,148.67,0.04476681]
[1749858463998,0.04654252,148.7,148.68,6.7223]
[1749858464495,0.04654252,148.7,148.67,0.04476681]
[1749858464496,6.7225,148.69,148.67,0.04476681]
[1749858464696,3.98538013,148.7,148.67,0.04476681]
[1749858465203,10.70748013,148.7,148.67,0.04476681]
[1749858465406,10.70748013,148.7,148.67,6.76786681]
[1749858465703,0.04654252,148.7,148.67,0.04476681]
[1749858465905,0.04654252,148.7,148.68,6.7227]
[1749858466103,0.04654252,148.7,148.67,0.04476681]
[1749858467298,3.98538013,148.7,148.67,0.04476681]
[1749858468309,4.61199541,148.69,148.67,0.04476681]
[1749858468506,4.61199541,148.68,148.67,0.04476681]
[1749858468809,4.61199541,148.68,148.67,6.76786681]
[1749858468999,4.61199541,148.68,148.67,0.04476681]
[1749858469604,4.61202545,148.68,148.67,0.04476681]
[1749858470006,4.61203738,148.68,148.67,0.04476681]
[1749858470211,3.98538013,148.7,148.67,0.04476681]
[1749858470409,4.60477711,148.69,148.67,6.76766681]
[1749858470608,4.60497154,148.68,148.67,0.04476681]
[1749858471009,10.70718013,148.7,148.67,0.04476681]
[1749858471315,10.70718013,148.7,148.67,6.76766681]
[1749858471509,4.60494394,148.69,148.67,6.76766681]
[1749858471711,4.60494394,148.68,148.67,6.76766681]
[1749858471903,10.70718013,148.7,148.67,6.76766681]
[1749858472107,4.60497399,148.69,148.67,6.76766681]
[1749858472307,4.60497399,148.68,148.67,6.76766681]
[1749858472610,4.60521439,148.68,148.67,0.04476681]
[1749858472810,4.60518678,148.68,148.67,0.04476681]
[1749858473009,6.7222,148.69,148.67,0.04476681]
[1749858473216,4.60518678,148.68,148.67,6.76786681]
[1749858473710,10.70728013,148.7,148.67,6.76786681]
[1749858473916,10.08081295,148.69,148.67,6.76786681]
[1749858474107,4.60538084,148.68,148.67,6.76786681]
[1749858474308,4.6053581,148.68,148.67,6.76786681]
[1749858474815,10.70728013,148.7,148.67,6.76786681]
[1749858475009,5.47811803,148.69,148.67,6.76786681]
[1749858475210,5.48117276,148.68,148.67,6.76786681]
[1749858475715,10.08656337,148.68,148.67,6.76786681]
[1749858475914,4.60539061,148.68,148.67,6.76786681]
[1749858476119,0.04654252,148.7,148.68,6.7224]
[1749858476313,10.08256511,148.69,148.68,6.7224]
[1749858476519,10.08256775,148.69,148.68,6.7224]
[1749858476720,10.08256155,148.69,148.68,6.7224]
[1749858476915,5.48240345,148.69,148.68,6.7224]
[1749858477118,10.0760061,148.69,148.67,6.76766681]
[1749858477318,3.98538013,148.7,148.67,6.76766681]
[1749858477519,5.48320687,148.69,148.67,6.76766681]
[1749858477719,3.98538013,148.7,148.67,6.76766681]
[1749858477920,10.07385863,148.69,148.67,6.76766681]
[1749858478220,4.59360265,148.68,148.67,0.04476681]
[1749858478519,10.07463183,148.68,148.67,0.04476681]
[1749858478722,10.07502294,148.68,148.67,0.04476681]
[1749858479326,10.07502294,148.68,148.67,6.76786681]
[1749858479516,10.07511198,148.68,148.67,6.76786681]
[1749858480224,10.07511198,148.68,148.67,0.04476681]
[1749858480825,5.48102918,148.68,148.67,0.04476681]
[1749858481323,10.07508196,148.68,148.67,0.04476681]
[1749858481920,5.48102918,148.68,148.67,0.04476681]
[1749858482116,14.0188146,148.68,148.67,0.04476681]
[1749858482314,14.01889907,148.68,148.67,0.04476681]
[1749858482511,14.01891738,148.68,148.67,0.04476681]
[1749858482725,9.41986679,148.68,148.67,0.04476681]
[1749858483019,14.01892349,148.68,148.67,0.04476681]
[1749858483223,9.41986679,148.68,148.67,0.04476681]
[1749858485425,16.14256679,148.68,148.67,0.04476681]
[1749858485622,16.14256679,148.68,148.63,34.22]
[1749858485818,5.48102918,148.67,148.63,34.22]
[1749858486017,5.48102918,148.66,148.64,6.7242]
[1749858486225,10.66153761,148.68,148.64,6.7242]
[1749858486525,16.79157848,148.67,148.64,6.7242]
[1749858486824,5.47109724,148.66,148.64,0.04413268]
[1749858487020,5.47109724,148.65,148.64,0.04413268]
[1749858487225,6.77294627,148.67,148.64,0.04413268]
[1749858487425,5.46973094,148.66,148.64,0.04413268]
[1749858487626,6.77294627,148.67,148.64,6.76843268]
[1749858487821,5.4697287,148.66,148.64,6.76843268]
[1749858488019,6.77294627,148.67,148.64,6.76843268]
[1749858488223,5.46969416,148.66,148.64,6.76843268]
[1749858488417,6.77294627,148.67,148.64,6.76843268]
[1749858488617,5.46928699,148.66,148.64,6.76843268]
[1749858488817,6.77294627,148.67,148.64,6.76843268]
[1749858489014,20.72788938,148.66,148.64,0.04413268]
[1749858489214,5.46936522,148.65,148.64,0.04413268]
[1749858490129,12.19346522,148.65,148.64,0.04413268]
[1749858490927,5.46936522,148.65,148.64,0.04413268]
[1749858491318,5.46936522,148.65,148.64,6.76863268]
[1749858492329,10.71198388,148.67,148.64,6.76863268]
[1749858492533,10.05410094,148.66,148.64,6.76863268]
[1749858492829,10.71198388,148.67,148.64,6.76863268]
[1749858493128,10.05410338,148.66,148.64,6.76863268]
[1749858493329,10.71198388,148.67,148.64,6.76863268]
[1749858493526,5.45946565,148.66,148.64,6.76863268]
[1749858493829,6.7236,148.66,148.64,6.76863268]
[1749858494133,6.7236,148.66,148.64,0.04413268]
[1749858494332,3.93883761,148.65,148.64,0.04413268]
[1749858494629,9.39483293,148.65,148.64,0.04413268]
[1749858494831,16.11883293,148.65,148.64,0.04413268]
[1749858495224,16.60298041,148.65,148.6,34.22]
[1749858495436,3.93883761,148.63,148.6,34.22]
[1749858495628,10.66403761,148.63,148.6,40.9463]
[1749858496229,10.70998034,148.63,148.6,6.77768433]
[1749858497020,3.98478034,148.63,148.6,0.05138433]
[1749858497333,10.04352115,148.62,148.6,0.05138433]
[1749858497528,6.7257,148.62,148.6,0.05138433]
[1749858498144,6.7255,148.62,148.6,0.05138433]
[1749858499535,10.66473761,148.61,148.6,0.05138433]
[1749858501536,6.7259,148.61,148.6,0.05138433]
[1749858501932,10.66433761,148.62,148.6,0.05138433]
[1749858502229,7.20972988,148.61,148.6,0.05138433]
[1749858502832,7.20972127,148.61,148.6,0.05138433]
[1749858503033,4.59480387,148.61,148.6,0.05138433]
[1749858503232,13.935605,148.61,148.6,0.05138433]
[1749858503830,13.93549944,148.61,148.6,0.05138433]
[1749858504025,7.20959937,148.61,148.6,0.05138433]
[1749858504335,7.20959937,148.61,148.6,6.77768433]
[1749858504336,7.20805045,148.61,148.6,6.77768433]
[1749858504534,7.20805044,148.61,148.6,6.77768433]
[1749858504735,4.59473389,148.61,148.6,6.77768433]
[1749858504936,0.04594273,148.63,148.62,6.7254]
[1749858505138,7.25317666,148.63,148.62,6.7254]
[1749858505338,7.25317699,148.63,148.62,6.7254]
[1749858505535,7.25317334,148.63,148.62,6.7254]
[1749858505734,7.2531569,148.63,148.62,6.7254]
[1749858505937,4.64008803,148.63,148.62,6.7254]
[1749858506141,3.93883761,148.68,148.65,6.7238]
[1749858506335,40.28733761,148.7,148.62,3.93883761]
[1749858506641,19.3512822,148.69,148.62,3.93883761]
[1749858506829,5.42583085,148.68,148.62,3.93883761]
[1749858507029,7.20282837,148.67,148.62,3.93883761]
[1749858507237,2.66135571,148.66,148.63,0.05090169]
[1749858507443,0.04903041,148.66,148.63,0.05090169]
[1749858507743,0.04903041,148.66,148.65,6.7241]
[1749858508242,0.04903041,148.66,148.65,40.7441]
[1749858509641,4.63895019,148.66,148.65,40.7441]
[1749858509844,0.04903041,148.66,148.65,40.7441]
[1749858510046,3.93883761,148.7,148.68,6.7223]
[1749858510345,4.59757689,148.69,148.68,6.7223]
[1749858510843,3.93883761,148.7,148.68,6.7223]
[1749858511143,4.59757476,148.69,148.68,0.04270687]
[1749858511536,3.9821916,148.7,148.68,0.04270687]
[1749858511737,3.9821916,148.7,148.68,6.76530687]
[1749858512044,4.59755798,148.69,148.68,6.76530687]
[1749858512241,4.59756486,148.69,148.68,6.76530687]
[1749858512637,4.59757366,148.69,148.68,6.76530687]
[1749858513138,4.59756176,148.69,148.68,6.76530687]
[1749858514238,3.9821916,148.7,148.68,6.76530687]
[1749858514439,4.59756176,148.69,148.68,6.76530687]
[1749858515245,4.59756176,148.69,148.68,0.04270687]
[1749858516639,4.59759174,148.69,148.68,0.04270687]
[1749858516841,10.7040916,148.7,148.68,0.04270687]
[1749858517043,4.59759174,148.69,148.68,0.04270687]
[1749858517246,13.93750912,148.69,148.68,0.04270687]
[1749858517446,9.3399154,148.69,148.68,0.04270687]
[1749858517743,19.40577848,148.69,148.68,0.04270687]
[1749858517933,14.80318515,148.69,148.68,0.04270687]
[1749858518139,19.4057781,148.69,148.68,0.04270687]
[1749858518339,16.78803187,148.69,148.68,0.04270687]
[1749858518645,19.42705446,148.69,148.68,0.04270687]
[1749858518844,12.70484135,148.69,148.68,0.04270687]
[1749858519041,2.63898873,148.69,148.68,0.04270687]
[1749858519237,7.2486987,148.69,148.68,0.04270687]
[1749858519441,19.43770924,148.69,148.68,0.04270687]
[1749858519639,11.33191208,148.69,148.68,0.04270687]
[1749858519838,16.79865367,148.69,148.68,0.04270687]
[1749858520043,12.71548798,148.69,148.68,0.04270687]
[1749858520250,12.71548554,148.69,148.68,0.04270687]
[1749858520439,7.24880833,148.69,148.68,0.04270687]
[1749858520645,13.97099403,148.69,148.68,0.04270687]
[1749858520943,5.46684317,148.69,148.68,0.04270687]
[1749858521143,7.24884535,148.69,148.68,0.04270687]
[1749858521348,12.71877357,148.69,148.68,0.04270687]
[1749858521543,16.79884938,148.69,148.68,0.04270687]